bitfinex/quotes_ETHUSD_20211001
["timestamp","ask_amount","ask_price","bid_price","bid_amount"]
[1633121277157,0.21853435,3280.6,3280.1,1.01364297]
[1633121277957,0.21853435,3280.6,3280.3,4.57204]
[1633121278560,0.21853435,3280.6,3280.3,7.62012]
[1633121278759,0.21853435,3280.6,3280.3,3.04808]
[1633121279162,0.21853435,3280.6,3280.4,4.57147]
[1633121286128,0.21853435,3280.6,3280.3,3.04808]
[1633121286932,0.21853435,3280.6,3280.0,0.009]
[1633121287331,0.27188235,3280.6,3280.0,0.009]
[1633121287733,0.8143911,3280.2,3280.0,0.009]
[1633121287934,0.27188235,3280.6,3280.0,0.009]
[1633121288138,0.27188235,3280.6,3280.0,4.58144]
[1633121288433,0.21853435,3280.6,3280.0,4.58144]
[1633121289034,0.97118321,3280.5,3280.1,0.97309568]
[1633121289434,0.21853435,3280.4,3280.2,3.04794]
[1633121290033,0.21853435,3280.4,3280.1,0.97309568]
[1633121291037,0.21853435,3280.4,3280.1,5.54538568]
[1633121291236,0.21853435,3280.4,3280.1,0.97309568]
[1633121291435,0.21853435,3280.4,3280.0,0.009]
[1633121291836,1.04705245,3280.4,3280.0,0.009]
[1633121292236,5.61998245,3280.4,3280.0,0.009]
[1633121292636,4.63911425,3280.4,3280.0,0.009]
[1633121293836,0.182,3280.3,3280.0,0.009]
[1633121294838,4.75508,3280.3,3280.0,0.009]
[1633121296837,0.182,3280.3,3280.0,0.009]
[1633121299241,0.23801373,3280.1,3280.0,0.009]
[1633121299443,0.23801373,3280.1,3280.0,1.06495346]
[1633121299844,0.23801373,3280.1,3280.0,5.63727346]
[1633121300045,0.23801373,3280.1,3280.0,5.94206156]
[1633121302849,0.23801373,3280.1,3280.0,7.23606156]
[1633121303051,0.23801373,3280.1,3280.0,7.43131882]
[1633121303658,1.373e-05,3280.1,3280.0,7.43131882]
[1633121303853,0.003,3281.0,3280.2,0.29305193]
[1633121304056,0.003,3281.0,3280.9,9.982022]
[1633121304256,0.003,3281.5,3281.4,5.98326785]
[1633121304454,0.003,3281.5,3281.4,3.56233384]
[1633121304660,0.003,3281.5,3281.4,6.55573188]
[1633121304855,0.003,3282.0,3281.5,10.15]
[1633121305157,0.003,3282.0,3281.7,1.320371]
[1633121305357,0.003,3282.0,3281.9,12.17085612]
[1633121305555,0.003,3282.0,3281.9,0.69791497]
[1633121305753,0.003,3282.0,3281.9,1.16266433]
[1633121306160,0.003,3282.0,3281.9,5.73048433]
[1633121306357,0.003,3282.5,3282.3,1.4483353]
[1633121306557,0.003,3282.5,3282.4,0.44125843]
[1633121306757,0.003,3283.0,3282.5,7.75]
[1633121306955,0.003,3283.0,3282.6,0.37672441]
[1633121307154,0.003,3283.0,3282.8,4.56678]
[1633121307356,0.003,3283.0,3282.9,3.22805482]
[1633121307555,0.003,3283.0,3282.9,4.28217238]
[1633121307955,2.413,3283.4,3282.9,4.28217238]
[1633121308154,2.413,3283.4,3283.0,0.1946316]
[1633121308358,2.46,3283.6,3283.2,0.94735629]
[1633121308559,2.46,3283.6,3283.3,0.182]
[1633121308761,2.46,3283.6,3283.0,6.08895]
[1633121308957,2.46,3283.6,3283.1,3.04452]
[1633121309558,2.46,3283.6,3282.8,4.75008]
[1633121309761,0.73211145,3283.3,3282.0,11.4896]
[1633121309959,0.73211145,3283.3,3282.1,0.19439755]
[1633121310160,0.73211145,3283.3,3282.1,0.19739755]
[1633121310360,0.73211145,3283.3,3282.4,3.04569]
[1633121310759,0.73211145,3283.3,3282.5,0.003]
[1633121312159,5.30136145,3283.3,3282.5,0.003]
[1633121312563,5.48336145,3283.3,3282.2,0.003]
[1633121312763,0.056797,3282.8,3282.2,0.003]
[1633121312962,2.46,3282.6,3281.9,0.006]
[1633121313161,2.46,3282.6,3281.9,0.93787658]
[1633121313362,3.29411465,3282.6,3281.9,1.74406979]
[1633121313561,3.29411465,3282.6,3282.0,0.006]
[1633121313966,2.46,3282.6,3282.0,0.006]
[1633121314760,2.46,3282.6,3282.4,1.0791454]
[1633121315160,0.182,3283.1,3282.5,0.80420159]
[1633121317162,0.182,3283.1,3282.5,0.003]
[1633121317366,1.349311,3282.8,3282.5,0.003]
[1633121317566,2.65091088,3282.7,3282.0,0.006]
[1633121317765,2.65091088,3282.7,3281.5,0.003]
[1633121317766,0.059116,3282.0,3281.5,0.009]
[1633121317966,0.182,3281.9,3281.5,0.009]
[1633121318166,7.25841841,3281.8,3281.5,0.009]
[1633121318432,1.476,3281.7,3281.5,0.009]
[1633121318630,0.182,3281.7,3281.5,0.009]
[1633121318827,0.3396,3281.7,3281.5,0.009]
[1633121319028,3.2536,3281.6,3281.5,0.009]
[1633121319233,0.3356,3281.6,3281.5,0.009]
[1633121319430,0.326,3281.6,3281.5,0.009]
[1633121319629,0.31,3281.6,3281.5,0.009]
[1633121319836,0.314,3281.6,3281.5,0.009]
[1633121320029,1.07254375,3281.6,3281.5,0.009]
[1633121320228,1.07174375,3281.6,3281.5,0.009]
[1633121320430,1.07334375,3281.6,3281.5,0.009]
[1633121320630,1.07414375,3281.6,3281.5,0.009]
[1633121321029,1.06694375,3281.6,3281.5,0.009]
[1633121321230,6.93491375,3281.6,3281.5,0.009]
[1633121321430,6.93971375,3281.6,3281.5,0.009]
[1633121321835,5.64571375,3281.6,3281.5,0.009]
[1633121322030,5.64091375,3281.6,3281.5,0.009]
[1633121322230,5.64171375,3281.6,3281.5,0.009]
[1633121322631,6.94051375,3281.6,3281.5,0.009]
[1633121322831,6.93571375,3281.6,3281.5,0.009]
[1633121323032,6.94771375,3281.6,3281.5,0.009]
[1633121323431,6.95331375,3281.6,3281.5,0.009]
[1633121323632,6.95171375,3281.6,3281.5,0.009]
[1633121323832,6.94611375,3281.6,3281.5,0.009]
[1633121324231,6.94531375,3281.6,3281.5,0.009]
[1633121324633,6.94611375,3281.6,3281.5,0.009]
[1633121325232,6.94771375,3281.6,3281.5,0.009]
[1633121325831,6.94851375,3281.6,3281.5,0.009]
[1633121326031,6.94771375,3281.6,3281.5,0.009]
[1633121326431,6.94851375,3281.6,3281.5,0.009]
[1633121326634,6.93971375,3281.6,3281.5,0.009]
[1633121326832,6.94611375,3281.6,3281.5,0.009]
[1633121327433,3.56233384,3281.4,3280.0,0.009]
[1633121327633,0.058369,3280.9,3280.0,0.009]
[1633121327833,0.182,3280.8,3280.0,0.009]
[1633121328233,0.182,3280.8,3280.3,1.68537373]
[1633121328432,0.1192,3280.7,3280.3,1.68537373]
[1633121328635,0.182,3280.6,3280.4,0.006]
[1633121329435,0.182,3280.6,3280.1,0.006]
[1633121330035,4.75497,3280.6,3280.2,0.9343109]
[1633121330234,4.75497,3280.6,3280.1,0.006]
[1633121330435,7.80389,3280.6,3280.3,0.006]
[1633121331436,0.182,3280.6,3280.3,0.006]
[1633121331635,0.182,3280.6,3280.2,1.08492915]
[1633121332034,0.182,3280.6,3280.3,0.006]
[1633121333036,0.182,3280.6,3280.0,0.009]
[1633121333037,0.182,3280.6,3280.1,0.006]
[1633121333435,0.182,3280.6,3280.2,0.88779433]
[1633121333635,0.182,3280.6,3280.4,1.08551417]
[1633121334034,0.182,3280.6,3280.5,0.006]
[1633121334435,0.182,3280.6,3280.3,0.006]
[1633121335235,0.182,3280.6,3280.4,0.88883637]
[1633121335637,0.182,3280.6,3280.5,0.006]
[1633121336435,0.182,3280.6,3280.2,0.88779433]
[1633121336436,0.182,3280.6,3280.3,0.006]
[1633121337837,0.182,3280.6,3280.1,0.006]
[1633121338240,0.182,3280.6,3280.2,1.05838693]
[1633121338439,0.182,3280.6,3280.1,0.006]
[1633121338639,0.182,3280.6,3280.3,0.006]
[1633121339839,0.182,3280.6,3280.2,0.006]
[1633121344641,0.182,3280.6,3280.4,1.294]
[1633121344842,0.2996,3281.1,3280.2,0.006]
[1633121345043,0.1184,3281.1,3280.5,0.006]
[1633121345248,1.11591084,3281.4,3280.6,4.57104]
[1633121345443,2.06612076,3281.4,3280.8,0.99868755]
[1633121345843,2.06612076,3281.4,3280.9,0.003]
[1633121346044,2.06612076,3281.4,3281.1,1.294]
[1633121346246,2.06612076,3281.4,3280.9,0.003]
[1633121346844,2.06612076,3281.4,3280.8,0.003]
[1633121347647,1.11591084,3281.4,3280.8,0.003]
[1633121348447,5.68722084,3281.4,3280.8,0.003]
[1633121349249,0.91031949,3281.0,3280.8,0.003]
[1633121350456,0.91031949,3281.0,3280.1,0.006]
[1633121350651,0.91031949,3281.0,3280.2,0.19474999]
[1633121351049,0.91031949,3281.0,3280.3,0.006]
[1633121351650,1.02471949,3281.0,3280.2,0.006]
[1633121352051,0.91031949,3281.0,3280.2,1.16550196]
[1633121352251,4.57194,3281.0,3280.2,1.16550196]
[1633121352453,0.1168,3281.0,3280.3,0.006]
[1633121352850,0.2996,3281.1,3280.3,0.006]
[1633121353055,0.182,3281.1,3280.3,0.006]
[1633121353252,0.182,3281.1,3280.7,0.97322491]
[1633121353452,1.1202973,3281.1,3280.5,0.72380455]
[1633121353651,1.1202973,3281.1,3280.8,0.003]
[1633121353852,1.1202973,3281.1,3280.6,0.003]
[1633121354453,1.1202973,3281.1,3280.6,1.0582962]
[1633121354855,1.1202973,3281.1,3280.7,0.003]
[1633121355253,1.1202973,3281.1,3280.6,4.57447]
[1633121355658,1.1202973,3281.1,3280.7,0.003]
[1633121356855,0.182,3281.1,3280.7,0.003]
[1633121357256,0.182,3281.1,3280.6,0.003]
[1633121357455,0.182,3281.1,3280.6,0.90885115]
[1633121357855,0.182,3281.1,3280.7,0.003]
[1633121359256,4.75386,3281.1,3280.7,0.003]
[1633121359456,0.182,3281.1,3280.7,0.003]
[1633121360457,4.75385,3281.1,3280.7,0.003]
[1633121361056,0.182,3281.1,3280.7,0.003]
[1633121362857,0.182,3281.1,3280.9,0.98870159]
[1633121363259,0.182,3281.1,3281.0,0.003]
[1633121364061,1.11591084,3281.4,3281.0,0.003]
[1633121365060,1.11591084,3281.4,3281.0,4.57388]
[1633121365262,1.11591084,3281.4,3281.3,1.08028549]
[1633121365463,1.11591084,3281.4,3281.0,4.57388]
[1633121366660,1.11591084,3281.4,3281.1,1.21298843]
[1633121366861,1.11591084,3281.4,3281.2,4.57037]
[1633121375664,1.11591084,3281.4,3281.3,0.1946268]
[1633121376066,1.11591084,3281.4,3281.2,4.57037]
[1633121376469,1.11591084,3281.4,3281.3,0.19464426]
[1633121376664,1.11591084,3281.4,3281.3,0.19464252]
[1633121376865,1.11591084,3281.4,3281.2,4.57037]
[1633121377065,1.11591084,3281.4,3281.3,0.19463907]
[1633121377467,1.11591084,3281.4,3281.2,4.57037]
[1633121377668,1.10541483,3281.4,3281.3,0.19466219]
[1633121379269,1.10541483,3281.4,3281.2,4.57037]
[1633121379470,1.10541483,3281.4,3281.1,3.04708]
[1633121380668,1.10541483,3281.4,3281.2,1.13652557]
[1633121380868,1.10541483,3281.4,3281.1,3.04708]
[1633121382273,1.10541483,3281.4,3281.2,0.1824968]
[1633121382472,1.10541483,3281.4,3281.1,2.99708]
[1633121382671,1.10541483,3281.4,3281.2,4.75270704]
[1633121382871,1.10541483,3281.4,3281.2,4.57022]
[1633121383472,1.10541483,3281.4,3281.3,0.18267408]
[1633121384338,1.05541483,3281.4,3281.3,0.18267408]
[1633121384876,1.05541483,3281.4,3281.2,4.57022]
[1633121385477,1.05541483,3281.4,3281.3,0.18274014]
[1633121385876,1.05541483,3281.4,3281.3,0.18274333]
[1633121386076,1.05541483,3281.4,3281.2,0.18274292]
[1633121386276,1.05541483,3281.4,3281.3,0.18274145]
[1633121386476,1.05541483,3281.4,3281.3,0.18275251]
[1633121386680,1.05541483,3281.4,3281.2,0.18274908]
[1633121387343,1.05541483,3281.4,3281.2,4.75323908]
[1633121387479,1.05541483,3281.4,3281.3,0.18279872]
[1633121387680,0.003,3282.0,3281.4,2.11082966]
[1633121388079,0.003,3282.0,3281.5,0.18271581]
[1633121388477,0.003,3282.0,3281.6,0.89934931]
[1633121388677,0.003,3282.0,3281.7,1.10318661]
[1633121388879,0.003,3282.0,3281.8,1.47649176]
[1633121389078,0.003,3282.0,3281.9,4.75127957]
[1633121393882,0.003,3282.0,3281.9,4.70127957]
[1633121400087,0.003,3282.0,3281.9,6.23397957]
[1633121401288,0.003,3282.0,3281.9,6.18397957]
[1633121402994,0.003,3282.0,3281.7,6.09124]
[1633121403191,0.003,3282.0,3281.6,9.442848]
[1633121403192,0.003,3282.0,3281.6,3.04608]
[1633121404191,0.84593065,3281.9,3281.4,2.11082966]
[1633121404392,1.294,3281.7,3281.4,2.11082966]
[1633121404593,0.182,3281.7,3281.4,2.11082966]
[1633121405192,0.182,3281.7,3281.4,3.12613106]
[1633121406794,0.185,3282.0,3281.4,3.12613106]
[1633121407599,0.185,3282.0,3281.7,4.56975]
[1633121407793,0.185,3282.0,3281.8,0.8727]
[1633121407994,0.185,3282.0,3281.9,1.18820812]
[1633121408194,0.185,3282.0,3281.6,9.13916]
[1633121408395,0.185,3282.0,3281.6,3.0465]
[1633121409193,0.185,3282.0,3281.7,0.97714007]
[1633121409797,0.01022444,3281.8,3281.7,4.56973]
[1633121410599,0.01022444,3281.8,3281.7,6.06973]
[1633121411460,0.01022444,3281.8,3281.7,6.9462882]
[1633121412262,0.01022444,3281.8,3281.7,6.06973]
[1633121412464,0.01022444,3281.8,3281.7,1.45]
[1633121413463,0.01022444,3281.8,3281.7,2.54229953]
[1633121420466,0.01022444,3281.8,3281.7,1.45]
[1633121421465,0.01022444,3281.8,3281.7,2.44608157]
[1633121426668,0.23545485,3281.8,3281.7,2.44608157]
[1633121428269,0.23545485,3281.8,3281.7,3.74008157]
[1633121429271,0.23545485,3281.8,3281.7,2.44608157]
[1633121429671,0.23545485,3281.8,3281.7,3.74008157]
[1633121431272,0.23545485,3281.8,3281.7,3.91669937]
[1633121431476,0.23545485,3281.8,3281.7,2.62269937]
[1633121432074,0.01022444,3281.8,3281.7,2.62269937]
[1633121432275,0.01022444,3281.8,3281.7,2.6254437]
[1633121433875,0.01022444,3281.8,3281.7,2.62269937]
[1633121437277,0.01022444,3281.8,3281.7,7.19181937]
[1633121442485,0.01022444,3281.8,3281.7,8.48581937]
[1633121442885,0.01022444,3281.8,3281.7,7.19181937]
[1633121443486,0.01022444,3281.8,3281.7,8.49130803]
[1633121444686,0.01022444,3281.8,3281.7,7.19730803]
[1633121447894,0.01022444,3281.8,3281.7,8.49130803]
[1633121448292,0.003,3282.0,3281.8,10.15]
[1633121448499,0.003,3282.0,3281.9,14.11821922]
[1633121448691,0.003,3282.0,3281.9,31.09217509]
[1633121448892,0.003,3282.5,3282.1,3.3492026]
[1633121449093,0.003,3282.5,3282.3,4.56714]
[1633121449296,0.003,3282.5,3282.4,0.3585836]
[1633121449493,0.003,3282.5,3282.4,5.81812725]
[1633121450359,0.003,3282.5,3282.4,24.87212725]
[1633121450495,0.003,3282.5,3282.4,25.61444266]
[1633121452294,0.003,3282.5,3282.4,30.61444266]
[1633121452696,0.22540285,3282.5,3282.4,38.27801266]
[1633121452895,0.055743,3284.0,3283.0,0.003]
[1633121453094,0.055743,3284.0,3283.0,0.185]
[1633121453295,0.055743,3284.0,3283.6,0.88309163]
[1633121453296,2.20809523,3283.9,3283.6,0.88309163]
[1633121453695,0.86900316,3283.8,3283.7,7.61094]
[1633121454095,0.055743,3284.0,3283.7,7.78525031]
[1633121454295,0.005743,3284.0,3283.7,7.78938593]
[1633121454499,0.5065855,3284.4,3283.7,7.78938593]
[1633121454500,0.4623285,3284.4,3283.7,3.22282593]
[1633121454697,0.4623285,3284.4,3283.8,2.37191506]
[1633121454896,0.4623285,3284.4,3284.0,4.56662]
[1633121455300,0.8174097,3284.2,3284.0,4.56662]
[1633121455498,2.20653939,3284.1,3284.0,4.56662]
[1633121455809,2.20653939,3284.1,3283.8,1.02604514]
[1633121456599,2.20653939,3284.1,3283.7,0.17844593]
[1633121457398,6.77410939,3284.1,3283.7,0.17844593]
[1633121457598,2.20449763,3284.0,3283.7,0.17844593]
[1633121458198,0.11303266,3283.9,3283.7,0.00413562]
[1633121458400,0.11303266,3283.9,3283.7,4.57109562]
[1633121458600,0.11303266,3283.9,3283.7,0.00413562]
[1633121459398,0.9994097,3284.2,3283.8,0.17429367]
[1633121459602,2.20464473,3284.1,3283.8,0.17429367]
[1633121459997,5.24962983,3284.1,3283.8,0.17429367]
[1633121460202,3.0449851,3284.1,3283.8,0.17429367]
[1633121460399,2.20497888,3284.0,3283.8,0.17429367]
[1633121462804,0.9994097,3284.2,3283.8,0.17429367]
[1633121463003,2.20438679,3284.1,3283.8,0.17429367]
[1633121463602,2.20438679,3284.1,3283.8,7.61076]
[1633121463603,2.31745636,3284.1,3283.8,7.61076]
[1633121463804,0.11306957,3284.1,3283.8,7.61076]
[1633121464004,0.11306957,3284.1,3283.8,3.04397]
[1633121464809,0.182,3284.2,3283.8,3.04397]
[1633121465006,0.182,3284.2,3283.9,0.17832432]
[1633121465204,0.182,3284.2,3283.9,0.18242149]
[1633121465404,0.182,3284.2,3284.0,4.56639]
[1633121466406,0.182,3284.2,3283.9,0.18242149]
[1633121466611,0.003,3284.5,3283.9,0.18242149]
[1633121466806,0.003,3284.5,3284.1,0.058425]
[1633121467808,0.003,3284.5,3284.3,4.56521]
[1633121468205,0.003,3284.5,3284.3,6.93753459]
[1633121468406,0.003,3284.5,3284.3,4.56521]
[1633121468806,0.84352617,3284.5,3284.3,4.56521]
[1633121469005,0.84352617,3284.5,3284.2,6.08695]
[1633121469207,0.95670618,3284.5,3283.9,0.00819434]
[1633121470206,4.00139858,3284.5,3283.9,0.00819434]
[1633121470406,3.88821857,3284.5,3284.0,0.174144]
[1633121471407,8.45525857,3284.5,3284.0,0.174144]
[1633121471805,8.45525857,3284.5,3284.3,3.2251]
[1633121473205,3.88821857,3284.5,3284.3,3.2251]
[1633121475068,0.11316789,3284.4,3284.3,3.2251]
[1633121475277,11.38916789,3284.4,3284.3,3.1051]
[1633121475469,11.58916789,3284.4,3284.3,2.9971]
[1633121475670,1.6744,3284.3,3283.8,0.00029151]
[1633121475869,0.02565487,3283.9,3283.7,1.25496999]
[1633121476070,10.032,3283.8,3283.7,1.25496999]
[1633121476271,0.182,3283.8,3283.7,1.25496999]
[1633121476470,1.476,3283.8,3283.7,1.25496999]
[1633121476869,6.04471,3283.8,3283.7,1.25496999]
[1633121477472,7.6789378,3283.8,3283.7,1.25496999]
[1633121477672,8.01145725,3283.8,3283.7,1.25496999]
[1633121479674,7.96145725,3283.8,3283.7,1.25496999]
[1633121480478,8.07446596,3283.8,3283.7,1.25496999]
[1633121481275,7.96145725,3283.8,3283.7,1.25496999]
[1633121481476,7.96145725,3283.8,3283.7,1.4292803]
[1633121481675,7.96145725,3283.8,3283.7,1.3792803]
[1633121482074,7.96145725,3283.8,3283.7,1.3292803]
[1633121482676,6.32722945,3283.8,3283.7,1.3292803]
[1633121482877,5.99471,3283.8,3283.7,1.3292803]
[1633121484877,4.70071,3283.8,3283.7,1.3292803]
[1633121485077,5.99471,3283.8,3283.7,1.3292803]
[1633121485879,6.10771885,3283.8,3283.7,1.15496999]
[1633121486881,5.99471,3283.8,3283.7,1.33482006]
[1633121487679,4.70071,3283.8,3283.7,1.33482006]
[1633121490483,5.99471,3283.8,3283.7,1.33482006]
[1633121491284,5.99471,3283.8,3283.7,1.16050975]
[1633121491484,0.24500899,3283.8,3283.7,1.16050975]
[1633121491685,0.11300899,3283.8,3283.7,1.16050975]
[1633121492285,0.11300899,3283.8,3283.7,1.22772575]
[1633121492487,0.182,3284.2,3283.7,1.40203606]
[1633121492685,0.182,3284.2,3283.7,1.33482006]
[1633121494283,0.182,3284.2,3283.7,1.38392506]
[1633121494485,0.182,3284.2,3283.7,1.33482006]
[1633121496883,0.11305817,3284.1,3283.7,1.16050975]
[1633121497087,4.86275817,3284.1,3283.7,1.16050975]
[1633121497285,0.29505817,3284.1,3283.7,1.16050975]
[1633121497484,0.29505817,3284.1,3283.9,1.294]
[1633121497485,0.11305817,3284.1,3283.9,1.294]
[1633121497684,0.11305817,3284.1,3283.7,1.16050975]
[1633121497886,1.0892,3284.3,3284.0,0.17421052]
[1633121498083,1.0892,3284.3,3284.1,4.56615]
[1633121498884,1.0892,3284.3,3284.0,0.17421052]
[1633121501290,1.0892,3284.3,3284.0,4.74074052]
[1633121501686,1.0892,3284.3,3284.0,0.17421052]
[1633121502287,1.0892,3284.3,3283.7,1.16050975]
[1633121502489,0.11310733,3284.2,3284.1,4.56632]
[1633121502689,0.11310733,3284.2,3283.7,2.32380232]
[1633121502890,0.11310733,3284.2,3283.9,1.294]
[1633121503088,0.11310733,3284.2,3283.7,2.32380232]
[1633121503290,1.0892,3284.3,3283.7,2.32380232]
[1633121503489,1.0892,3284.3,3284.0,0.17421052]
[1633121507694,1.0892,3284.3,3284.0,4.74078052]
[1633121507897,1.0892,3284.3,3284.0,4.56657]
[1633121508095,0.11310747,3284.2,3284.0,4.56657]
[1633121508295,0.11310747,3284.2,3284.1,0.00270814]
[1633121508896,1.0892,3284.3,3284.1,0.1768854]
[1633121510698,0.182,3284.2,3284.1,0.1768854]
[1633121513302,0.082,3284.2,3284.1,0.1768854]
[1633121513703,0.19510762,3284.2,3284.1,0.00270814]
[1633121514308,9.1,3284.0,3283.0,0.18172065]
[1633121514504,0.079913,3283.6,3283.1,0.1765462]
[1633121514704,0.21051627,3283.5,3282.5,0.003]
[1633121514903,0.21051627,3283.5,3282.4,0.003]
[1633121515103,0.21051627,3283.5,3282.3,0.17956027]
[1633121515302,0.21051627,3283.5,3282.4,0.17657659]
[1633121515303,0.90058412,3282.9,3282.4,0.17657659]
[1633121515504,5.65167412,3282.9,3282.4,0.17957659]
[1633121515703,5.65167412,3282.9,3282.5,0.003]
[1633121516504,5.65167412,3282.9,3282.5,0.1795865]
[1633121516704,5.65167412,3282.9,3282.6,0.1765864]
[1633121516908,5.65167412,3282.9,3282.5,0.003]
[1633121517104,5.65167412,3282.9,3282.3,0.17958752]
[1633121517504,5.65167412,3282.9,3282.4,0.003]
[1633121519103,5.76442632,3282.9,3282.4,0.003]
[1633121519304,5.76442632,3282.9,3282.5,0.00233058]
[1633121519510,1.19533632,3282.9,3282.5,0.00233058]
[1633121519705,1.19533632,3282.9,3282.5,0.18191762]
[1633121519906,1.08258412,3282.9,3282.6,0.35122732]
[1633121520106,1.08258412,3282.9,3282.7,0.17658364]
[1633121520507,0.182,3282.9,3282.7,0.17658364]
[1633121520709,0.182,3282.9,3282.7,4.74486364]
[1633121520907,0.182,3282.9,3282.8,0.17657101]
[1633121521310,0.003,3283.5,3282.8,1.47057101]
[1633121521508,0.003,3283.5,3283.4,1.00515222]
[1633121521707,0.003,3283.5,3283.4,1.05298026]
[1633121524512,0.11593628,3283.5,3283.4,1.05298026]
[1633121525512,0.11593628,3283.5,3283.4,1.22739037]
[1633121525513,0.003,3283.5,3283.4,1.22739037]
[1633121529714,0.003,3283.5,3283.4,1.2296048]
[1633121529918,0.11593642,3283.5,3283.4,1.05519469]
[1633121530917,0.003,3283.5,3283.4,1.2296048]
[1633121531917,0.003,3283.5,3283.4,2.7296048]
[1633121532117,0.003,3283.5,3283.4,4.0236048]
[1633121534519,0.003,3283.5,3283.4,3.8236048]
[1633121535321,0.003,3283.5,3283.4,2.35519469]
[1633121535526,0.11593656,3283.5,3283.4,2.35519469]
[1633121536324,0.003,3283.5,3283.4,2.35519469]
[1633121536524,0.003,3283.5,3283.4,2.4796048]
[1633121537386,0.003,3283.5,3283.4,3.7736048]
[1633121538527,0.003,3283.5,3283.4,2.4796048]
[1633121540933,0.003,3284.5,3283.4,2.4796048]
[1633121540934,0.182,3284.4,3284.3,4.5379161]
[1633121541132,0.003,3284.5,3284.4,4.56565]
[1633121541330,0.003,3284.5,3284.4,7.26390258]
[1633121541728,0.064511,3284.5,3284.4,0.17649489]
[1633121541929,0.064511,3284.5,3284.3,5.36388662]
[1633121541930,2.26114033,3284.5,3284.3,5.36388662]
[1633121542129,0.96714033,3284.5,3284.3,5.36388662]
[1633121542328,0.96714033,3284.5,3283.5,0.003]
[1633121542329,0.3009367,3284.3,3283.5,0.003]
[1633121542532,5.516959,3283.6,3283.5,0.003]
[1633121542729,0.066959,3283.6,3283.5,0.003]
[1633121542935,0.248959,3283.6,3283.5,0.003]
[1633121543405,1.67738904,3283.6,3283.5,0.003]
[1633121543527,6.24642904,3283.6,3283.5,0.003]
[1633121544127,7.54042904,3283.6,3283.5,0.003]
[1633121544530,9.780984,3283.6,3283.5,0.003]
[1633121545538,8.486984,3283.6,3283.5,0.003]
[1633121545729,6.24642904,3283.6,3283.5,0.003]
[1633121545932,7.54042904,3283.6,3283.5,0.003]
[1633121546131,6.24642904,3283.6,3283.5,0.003]
[1633121546532,6.30292205,3283.6,3283.5,0.003]
[1633121547132,7.59692205,3283.6,3283.5,0.003]
[1633121547332,7.54042904,3283.6,3283.5,0.003]
[1633121547534,7.54042904,3283.6,3283.5,0.23384519]
[1633121547933,6.24642904,3283.6,3283.5,0.23384519]
[1633121548139,7.54042904,3283.6,3283.5,0.23384519]
[1633121548936,9.78419146,3283.6,3283.5,0.23384519]
[1633121549133,7.44042904,3283.6,3283.5,0.23384519]
[1633121550935,7.44042904,3283.6,3283.5,0.23773656]
[1633121551135,7.44042904,3283.6,3283.5,0.24162793]
[1633121551736,6.14642904,3283.6,3283.5,0.24162793]
[1633121551940,6.2029222,3283.6,3283.5,0.01078274]
[1633121552537,7.4969222,3283.6,3283.5,0.01078274]
[1633121552940,9.68326799,3283.6,3283.5,0.24162793]
[1633121553343,8.38926799,3283.6,3283.5,0.24162793]
[1633121553543,6.14642904,3283.6,3283.5,0.24162793]
[1633121553938,8.38925453,3283.6,3283.5,1.74162793]
[1633121554140,6.14642904,3283.6,3283.5,1.74162793]
[1633121554945,0.148959,3283.6,3283.5,1.74162793]
[1633121555411,0.39003638,3283.6,3283.5,1.74162793]
[1633121556942,0.148959,3283.6,3283.5,1.74162793]
[1633121557542,0.2054523,3283.6,3283.5,1.51078274]
[1633121558406,0.148959,3283.6,3283.5,1.51078274]
[1633121558547,0.148959,3283.6,3283.5,1.74162793]
[1633121560547,0.157566,3283.9,3283.5,3.47177293]
[1633121560548,0.3052,3283.9,3283.5,3.47177293]
[1633121560748,15.24382113,3284.3,3283.5,3.47177293]
[1633121560949,2.25584408,3284.2,3283.6,0.17653256]
[1633121561150,15.24382113,3284.3,3283.6,0.17653256]
[1633121561407,2.25807872,3284.2,3283.6,0.17653256]
[1633121561545,2.25807872,3284.2,3283.7,0.00383757]
[1633121562946,0.0565915,3284.1,3283.7,0.00383757]
[1633121563247,0.031166,3284.0,3283.7,0.00383757]
[1633121563446,0.213166,3284.0,3283.7,0.00383757]
[1633121564050,0.182,3284.0,3283.8,0.23074539]
[1633121566253,4.74973,3284.0,3283.8,0.23074539]
[1633121567449,0.182,3284.0,3283.8,0.23074539]
[1633121567651,15.06182113,3284.3,3283.9,1.294]
[1633121567652,15.24382113,3284.3,3283.9,1.294]
[1633121567851,4.07512113,3284.3,3284.0,0.17650482]
[1633121568451,0.05664067,3284.2,3284.0,0.17650482]
[1633121568855,0.05664067,3284.2,3284.1,0.96783699]
[1633121569052,0.05664067,3284.2,3284.1,1.14433262]
[1633121569453,4.07512113,3284.3,3284.1,1.37497823]
[1633121569653,4.07512113,3284.3,3284.2,0.1764912]
[1633121570053,4.07512113,3284.3,3284.2,4.7424912]
[1633121571312,4.07512113,3284.3,3284.2,0.1764912]
[1633121571913,4.07512113,3284.3,3284.2,0.18027439]
[1633121572515,4.07512113,3284.3,3284.2,4.74651439]
[1633121573115,4.07512113,3284.3,3284.2,5.90809303]
[1633121573914,4.13178645,3284.3,3284.2,7.20209303]
[1633121574121,0.003,3284.5,3284.3,4.01845581]
[1633121574315,0.003,3284.5,3284.4,0.17647618]
[1633121574517,0.003,3284.5,3284.4,4.74203618]
[1633121574716,0.003,3284.5,3284.4,4.80516418]
[1633121575118,0.003,3284.5,3284.4,6.09916418]
[1633121576318,0.003,3284.5,3284.4,4.80516418]
[1633121576922,0.003,3284.5,3284.4,15.5736644]
[1633121577119,0.003,3284.5,3284.4,16.29517668]
[1633121577320,0.003,3284.5,3284.4,31.74711091]
[1633121579524,0.03139407,3284.5,3284.4,31.74711091]
[1633121579723,0.003,3285.0,3284.5,0.03139407]
[1633121579923,0.003,3285.0,3284.9,1.7165517]